[Event "Swedish Championship 2022"]
[Site "Uppsala"]
[Date "2022.07.05"]
[Round "4.2"]
[White "Hector, Jonny"]
[Black "Smith, Axel"]
[Result "1-0"]
[ECO "C42"]
[WhiteElo "2441"]
[BlackElo "2417"]
[Annotator "TA"]
[PlyCount "109"]
[EventDate "2022.07.01"]
[EventType "tourn"]
[EventCountry "SWE"]
[SourceTitle "playchess.com"]
[Source "ChessBase"]
[SourceQuality "1"]
[TimeControl "40/5400+30:1800+30"]

{[%evp 21,109,18,18,0,15,0,29,17,33,30,18,25,25,11,43,25,25,22,25,16,11,-47,24,26,27,34,46,33,44,0,12,0,20,22,22,19,19,-8,-13,-15,-9,-12,13,0,0,-41,17,20,11,0,0,0,0,-5,15,14,40,41,46,8,8,8,14,14,14,14,70,24,223,223,304,283,695,681,668,666,636,611,582,429,5627,5627,29971,29972,29971,29970,29970,29971,29969,29959]} 1. e4 {[%emt 0:00:11]} e5 {[%emt 0:00:10]} 2. Nf3 {[%emt 0:00:14]} Nf6 {[%emt 0:00:04]} 3. Nxe5 {[%emt 0:00:30]} d6 {[%emt 0:00:04]} 4. Nf3 {[%emt 0:00:17]} Nxe4 {[%emt 0:00:03]} 5. d4 {[%emt 0:00:19]} d5 {[%emt 0:00:03]} 6. Bd3 {[%emt 0:00:44]} Bd6 {[%emt 0:00:14]} 7. O-O {[%emt 0:00:57]} O-O {[%emt 0:00:04]} 8. c4 {[%emt 0:01:25]} c6 {[%emt 0:00:02]} 9. Nc3 {[%emt 0:00:57]} Nxc3 {[%emt 0:01:41]} 10. bxc3 {[%emt 0:00:05]} dxc4 {[%emt 0:00:16]} 11. Bxc4 {[%emt 0:00:07]} Bf5 {[%emt 0:00:18]} 12. Ne5 {[%emt 0:06:45] C42: Petroff Defence: 3 Nxe5 and unusual White 3rd moves.} Nd7 {[%emt 0:03:00] [#]} 13. Qf3 $146 {[%emt 0:00:42]} ({Predecessor:} 13. f4 Qa5 14. Qb3 Bxe5 15. fxe5 Bg6 16. Ba3 b5 17. Bxf7+ Rxf7 18. Rxf7 Bxf7 19. e6 Bg6 20. exd7+ {0-1 (67) Esenov,A (2319)-Gunbayar,M (2283) Beijing 2008}) 13... Qf6 {[%emt 0:05:58]} 14. Nxd7 {[%emt 0:00:33] White has an edge.} Bxd7 {[%emt 0:00:13]} 15. Qxf6 {[%emt 0:00:21]} gxf6 {[%emt 0:00:03]} 16. Bh6 {[%emt 0:03:46]} Rfe8 {[%emt 0:00:45]} 17. Rfd1 {[%emt 0:02:41]} Re4 {[%emt 0:14:05]} 18. Bd2 {[%emt 0:12:28]} b5 {[%emt 0:12:19]} 19. Bd3 {[%emt 0:02:05]} Ree8 {[%emt 0:00:18]} 20. a4 {[%emt 0:03:05]} a5 {[%emt 0:06:20]} 21. c4 {[%emt 0:08:12]} (21. Bc2 $11) 21... bxc4 {[%emt 0:18:36]} (21... b4 $15) 22. Bxc4 $11 {[%emt 0:00:25]} Bb4 {[%emt 0:00:06]} 23. Be3 {[%emt 0:13:27]} Rac8 {[%emt 0:02:01]} 24. Kf1 {[%emt 0:07:39]} Bf5 {[%emt 0:07:26]} 25. Ke2 {[%emt 0:14:44]} Re7 {[%emt 0:11:10]} 26. Rdc1 {[%emt 0:01:55]} Be4 {[%emt 0:02:19]} 27. Bd3 {[%emt 0:02:37]} Bd5 {[%emt 0:00:33]} (27... Bxg2 $2 28. Rg1 $18) 28. Bf5 {[%emt 0:02:08]} Rb8 {[%emt 0:01:53]} 29. Rc2 {[%emt 0:04:01]} Bd6 {[%emt 0:01:12]} 30. h4 {[%emt 0:05:17]} Rb3 {[%emt 0:04:34]} 31. Kf1 {[%emt 0:01:00]} Reb7 {[%emt 0:00:24]} 32. Bd2 {[%emt 0:02:43]} Bb4 {[%emt 0:03:17]} 33. Be3 {[%emt 0:02:35]} Bd6 {[%emt 0:01:01]} (33... Bc3 $15 34. Rac1 Bb2) 34. h5 {[%emt 0:00:22]} Rb1+ {[%emt 0:00:42]} 35. Rxb1 {[%emt 0:00:48]} Rxb1+ {[%emt 0:00:01]} 36. Ke2 {[%emt 0:00:08]} Ra1 {[%emt 0:04:09]} ({Resist} 36... Bxg2 37. f3 Bf1+ 38. Kf2 $14) 37. Bd7 {[%emt 0:00:23]} Rxa4 {[%emt 0:01:39]} 38. Bxc6 {[%emt 0:00:25]} Ra2 {[%emt 0:00:07]} 39. Rxa2 {[%emt 0:00:25]} Bxa2 $14 {[%emt 0:01:04][%mdl 4096] Endgame KBB-KBB} 40. Ba4 {[%emt 0:01:23]} Bc4+ {[%emt 0:01:35]} 41. Kd1 {[%emt 0:30:41]} f5 {[%emt 0:04:20]} 42. h6 {[%emt 0:00:00]} f4 {[%emt 0:09:07]} 43. Bd2 {[%emt 0:00:00]} Bd5 {[%emt 0:00:32]} ({Black should play} 43... Bc7 $11) 44. f3 {[%emt 0:00:00]} (44. Bxa5 $14 Bxg2 45. Bd8) 44... Bc4 $2 {[%emt 0:00:38] Black cannot hold the game after this.} (44... Bc7 $11 {and Black stays safe.}) 45. Bxa5 $18 {[%emt 0:00:00]} f5 {[%emt 0:10:21]} 46. Bd7 {[%emt 0:00:00] [#] Hoping for Bd8.} Bd3 $2 {[%emt 0:03:55]} (46... Bf8 47. Bxf5 Kf7) 47. Kd2 {[%emt 0:00:00]} Bf1 {[%emt 0:01:30]} 48. Be6+ {[%emt 0:00:00]} Kf8 {[%emt 0:00:11]} 49. Bxf5 {[%emt 0:00:00]} Kf7 {[%emt 0:01:04]} 50. Ke1 {[%emt 0:00:00]} Kf6 {[%emt 0:02:52]} (50... Bc4 $142 51. Bd8 Kg8) 51. Bxh7 {[%emt 0:00:00]} Bxg2 {[%emt 0:00:03]} 52. Bd8+ {[%emt 0:00:10] White mates.} Kf7 {[%emt 0:01:35]} 53. Be4 {[%emt 0:01:40]} Bf8 {[%emt 0:00:25]} 54. Bg5 {[%emt 0:00:11]} Bh3 {[%emt 0:00:37]} 55. Bxf4 {[%emt 0:00:14] Weighted Error Value: White=0.14 (very precise) /Black=0.46} 1-0

[Event "Swedish Championship 2022"]
[Site "Uppsala"]
[Date "2022.07.05"]
[Round "4.3"]
[White "Westerberg, Jonathan"]
[Black "Jogstad, Martin"]
[Result "1/2-1/2"]
[ECO "A14"]
[WhiteElo "2476"]
[BlackElo "2384"]
[Annotator "TA"]
[PlyCount "92"]
[EventDate "2022.07.01"]
[EventType "tourn"]
[EventCountry "SWE"]
[SourceTitle "playchess.com"]
[Source "ChessBase"]
[SourceQuality "1"]
[TimeControl "40/5400+30:1800+30"]

{[%evp 22,92,0,-10,-9,-28,-7,-9,-10,-12,1,-10,0,-20,42,25,70,70,134,0,0,0,0,-37,-42,-58,-52,-40,-62,-72,-72,-83,-68,-97,-55,-55,8,-90,-97,-103,-90,-87,-107,-112,-112,-119,-102,-120,-101,-66,-14,-171,-163,-158,-68,-45,-34,-109,0,0,0,0,0,0,0,0,0,0,0,0,0,0,0]} 1. Nf3 {[%emt 0:00:04]} d5 {[%emt 0:00:58]} 2. g3 {[%emt 0:01:22]} Nf6 {[%emt 0:00:10]} 3. Bg2 {[%emt 0:01:12]} c5 {[%emt 0:01:42]} 4. O-O {[%emt 0:01:13]} Nc6 {[%emt 0:01:13]} 5. c4 {[%emt 0:00:44]} e6 {[%emt 0:00:10]} 6. b3 {[%emt 0:07:03]} Be7 {[%emt 0:05:23]} 7. e3 {[%emt 0:13:04]} O-O {[%emt 0:00:20]} 8. Bb2 {[%emt 0:00:20]} d4 {[%emt 0:01:52]} 9. exd4 {[%emt 0:05:14]} cxd4 {[%emt 0:00:07]} 10. Re1 {[%emt 0:00:06]} Re8 {[%emt 0:04:39]} 11. d3 {[%emt 0:07:23]} a5 {[%emt 0:11:27]} 12. a3 {[%emt 0:05:45]} Qb6 {[%emt 0:09:41] A14: English Opening: 1...e6 with b3 by White.} 13. Ne5 {[%emt 0:07:21]} Nd7 {[%emt 0:15:07]} 14. Nxd7 {[%emt 0:07:30]} (14. Nxf7 Kxf7 15. Qh5+ Kf8 16. Qxh7 (16. Rxe6 $2 Nf6 $19) 16... Nf6 $17) 14... Bxd7 {[%emt 0:00:02]} 15. Nd2 {[%emt 0:00:06] [#]} Bf8 $146 {[%emt 0:06:58]} ({Predecessor:} 15... e5 16. Bxc6 bxc6 17. Rxe5 c5 18. Qf3 Bc6 19. Qg4 Bd6 20. Rg5 g6 21. h4 Be5 {0-1 (31) Ivanov,P (1592)-Dimitrov,D (2289) ICCF email 2020}) 16. Qh5 {[%emt 0:10:57]} e5 {[%emt 0:07:37]} 17. Bd5 {[%emt 0:05:17]} g6 {[%emt 0:06:03]} (17... Be6 $1 $11) 18. Qf3 $14 {[%emt 0:02:34]} Nd8 {[%emt 0:00:31]} 19. Ne4 {[%emt 0:12:21]} Kg7 {[%emt 0:02:23] Prevents Nf6.} (19... Ra6 $14) 20. Rab1 {[%emt 0:04:05] White is more active.} ({Only move:} 20. g4 $16) 20... f5 $11 {[%emt 0:04:01]} 21. Nd2 {[%emt 0:00:21]} Bc6 {[%emt 0:05:08]} 22. Qg2 {[%emt 0:00:01]} (22. Rxe5 $5 Rxe5 23. Qf4 Rxd5 24. cxd5 $11) 22... Nf7 {[%emt 0:05:09]} 23. h4 {[%emt 0:02:15]} Rad8 {[%emt 0:01:15]} 24. Bxc6 {[%emt 0:00:18]} bxc6 {[%emt 0:00:58]} 25. h5 {[%emt 0:00:17]} c5 {[%emt 0:00:38]} ({Don't play} 25... gxh5 26. Qh3 $11) 26. hxg6 {[%emt 0:00:25]} hxg6 {[%emt 0:00:12]} 27. Bc1 {[%emt 0:00:36]} Qf6 {[%emt 0:02:16]} 28. g4 {[%emt 0:00:27]} Qg5 {[%emt 0:03:47] [#]} (28... e4 $15 29. dxe4 fxg4 30. Qxg4 Ne5) 29. gxf5 {[%emt 0:03:00]} (29. Ne4 $1 $11 {keeps the balance.} Qxg4 30. Qxg4 fxg4 31. Kg2 (31. Bd2 Ra8 $11)) 29... gxf5 {[%emt 0:00:16]} 30. Nf1 {[%emt 0:00:17]} Qxg2+ {[%emt 0:00:29]} 31. Kxg2 {[%emt 0:00:04]} Bd6 {[%emt 0:02:45]} 32. Ng3 {[%emt 0:01:21] [#]} Kf6 {[%emt 0:00:05]} 33. Bd2 {[%emt 0:00:12]} Rg8 {[%emt 0:00:47] Threatens to win with ...f4.} 34. Kf3 {[%emt 0:00:09]} Rde8 {[%emt 0:02:01]} 35. Nh5+ {[%emt 0:01:27]} Ke7 {[%emt 0:01:02]} (35... Kg6 $15 36. Ng3 Rh8) 36. Rg1 $2 {[%emt 0:00:05]} (36. Ke2 $11) 36... Rxg1 $19 {[%emt 0:00:26]} 37. Rxg1 {[%emt 0:00:01] [#]} Rh8 {[%emt 0:00:44]} ({Better is} 37... Rb8 $1 $17 {[%cal Rb8b3]} 38. Ke2 Rxb3) 38. Ng3 $1 $15 {[%emt 0:00:55]} Ke6 {[%emt 0:00:22] Strongly threatening ...Rb8.} 39. Bxa5 {[%emt 0:00:02]} ({White should try} 39. Ke2 $15) 39... Ng5+ {[%emt 0:00:34]} (39... e4+ $1 $17 40. dxe4 Ng5+ 41. Ke2 fxe4) 40. Ke2 $11 {[%emt 0:00:32] The position is equal.} e4 {[%emt 0:00:28]} 41. Nxe4 {[%emt 0:15:58]} Nxe4 {[%emt 0:04:38]} 42. dxe4 {[%emt 0:00:10]} fxe4 {[%emt 0:00:41] KRB-KRB} 43. Rg6+ {[%emt 0:00:16]} Kd7 {[%emt 0:03:49]} 44. Rg7+ {[%emt 0:00:06]} Ke6 {[%emt 0:01:55] White must now prevent ...Bf4.} 45. Rg6+ {[%emt 0:00:13]} Kd7 {[%emt 0:00:09]} 46. Rg7+ {[%emt 0:00:18]} Ke6 {[%emt 0:00:05] Weighted Error Value: White=0.23 (precise) /Black=0.22 (precise)} 1/2-1/2

[Event "Swedish Championship 2022"]
[Site "Uppsala"]
[Date "2022.07.05"]
[Round "4.4"]
[White "Seo, Jung Min"]
[Black "Johansson, Linus"]
[Result "1/2-1/2"]
[ECO "E01"]
[WhiteElo "2492"]
[BlackElo "2468"]
[Annotator "TA"]
[PlyCount "93"]
[EventDate "2022.07.01"]
[EventType "tourn"]
[EventCountry "SWE"]
[SourceTitle "playchess.com"]
[Source "ChessBase"]
[SourceQuality "1"]
[TimeControl "40/5400+30:1800+30"]

{[%evp 9,93,-1,29,14,23,31,29,18,19,8,14,15,12,16,15,-21,-7,-19,-8,-18,25,-6,-8,-14,-9,0,10,-10,0,11,16,20,0,0,6,-14,-19,-22,-25,-31,0,0,0,-18,-22,-66,-64,-60,-50,-68,0,0,0,0,0,0,0,0,0,0,0,0,10,0,0,0,10,10,10,10,10,10,10,10,10,10,10,10,10,10,10,0,10,0,10,0]} 1. d4 {[%emt 0:00:08]} Nf6 {[%emt 0:00:07]} 2. c4 {[%emt 0:00:01]} e6 {[%emt 0:00:07]} 3. Nf3 {[%emt 0:00:02]} d5 {[%emt 0:00:07]} 4. g3 {[%emt 0:00:02]} Bb4+ {[%emt 0:00:06]} 5. Bd2 {[%emt 0:00:05]} Bd6 {[%emt 0:00:05]} 6. Bg2 {[%emt 0:00:36] E01: Catalan: Early deviations.} O-O {[%emt 0:00:08]} 7. O-O {[%emt 0:00:36]} Nbd7 {[%emt 0:00:15]} 8. Qc2 {[%emt 0:01:31] White has an edge.} c6 {[%emt 0:01:14]} 9. Rd1 {[%emt 0:02:51]} Ne4 $1 {[%emt 0:04:11] The main line 9...Ne4 scores better than 9...Qe7.} 10. Nc3 {[%emt 0:01:22]} f5 {[%emt 0:00:11]} 11. Rac1 {[%emt 0:01:41] [#]} Qe8 $146 {[%emt 0:05:54]} ({Predecessor:} 11... Qe7 12. Bf4 Bxf4 13. gxf4 Kh8 {½-½ (13) Bryakin,M (2432)-Medvegy,Z (2544) Chess.com INT 2019}) 12. Ng5 {[%emt 0:05:02]} Nxd2 {[%emt 0:12:11]} 13. Qxd2 {[%emt 0:00:04]} h6 {[%emt 0:00:23]} 14. Nf3 {[%emt 0:01:54]} Kh8 {[%emt 0:03:16]} 15. c5 {[%emt 0:03:40]} Bc7 {[%emt 0:00:51]} 16. b4 {[%emt 0:00:20]} a6 {[%emt 0:01:32]} 17. e3 {[%emt 0:04:47]} g5 {[%emt 0:08:22]} 18. a4 {[%emt 0:03:35]} Qe7 {[%emt 0:06:10]} 19. b5 {[%emt 0:04:01]} axb5 {[%emt 0:00:33]} 20. axb5 {[%emt 0:00:18]} e5 {[%emt 0:00:15]} (20... Qg7 {is interesting.} 21. Ne2 e5 22. dxe5 Nxe5 23. Nfd4 Ba5) 21. bxc6 {[%emt 0:03:21]} bxc6 {[%emt 0:00:08]} 22. Nxe5 {[%emt 0:01:04]} Nxe5 {[%emt 0:02:38]} 23. dxe5 {[%emt 0:00:21]} Bxe5 {[%emt 0:00:07]} 24. Ne2 {[%emt 0:01:56] Inhibits f4.} Qg7 {[%emt 0:14:02][%cal Of5f4]} 25. Nd4 {[%emt 0:10:10]} Bd7 {[%emt 0:07:53]} 26. Ra1 {[%emt 0:03:57]} f4 {[%emt 0:03:02]} 27. Qb4 {[%emt 0:04:53]} fxe3 {[%emt 0:01:54]} (27... Rxa1 {looks sharper.} 28. Rxa1 fxe3 29. fxe3 Qg6) 28. fxe3 {[%emt 0:00:03]} Rxa1 {[%emt 0:08:24]} (28... Qe7 {is more complex.} 29. Rxa8 Rxa8 30. Qb7 Qe8) 29. Rxa1 {[%emt 0:00:06]} Bxd4 {[%emt 0:06:17]} ({Black should play} 29... Qe7 $15) 30. exd4 {[%emt 0:03:48] The position is equal.} Bf5 {[%emt 0:00:10]} 31. Rf1 {[%emt 0:02:33]} Bg6 {[%emt 0:00:49]} 32. Rxf8+ {[%emt 0:00:46]} Qxf8 $11 {[%emt 0:00:05][%mdl 4096] Endgame KQB-KQB} 33. Qe1 {[%emt 0:00:12]} Qf6 {[%emt 0:00:20]} 34. Qe3 {[%emt 0:00:11]} Kg7 {[%emt 0:00:19]} 35. h3 {[%emt 0:01:05]} Kf7 {[%emt 0:00:31]} 36. Bf3 {[%emt 0:00:14]} Qf5 {[%emt 0:01:03]} 37. Kg2 {[%emt 0:00:23]} Qc2+ {[%emt 0:00:15]} 38. Qf2 {[%emt 0:00:09]} Ke7 {[%emt 0:01:18]} 39. Qxc2 {[%emt 0:00:06]} Bxc2 {[%emt 0:00:04] KB-KB} 40. Kf2 {[%emt 0:00:09]} Bf5 {[%emt 0:01:02]} 41. h4 {[%emt 0:30:12]} Bd7 {[%emt 0:30:12]} 42. hxg5 {[%emt 0:00:05]} hxg5 {[%emt 0:00:06]} 43. Ke3 {[%emt 0:00:07]} Bf5 {[%emt 0:00:22]} 44. Bd1 {[%emt 0:00:10]} Bd7 {[%emt 0:00:51]} 45. Bf3 {[%emt 0:00:04]} Bf5 {[%emt 0:00:06]} 46. Bd1 {[%emt 0:00:01]} Bd7 {[%emt 0:00:05]} 47. Bf3 {[%emt 0:00:03] Weighted Error Value: White=0.06 (flawless) /Black=0.05 (flawless)} 1/2-1/2

[Event "Swedish Championship 2022"]
[Site "Uppsala"]
[Date "2022.07.05"]
[Round "4.5"]
[White "Hillarp Persson, Tiger"]
[Black "Blomqvist, Erik"]
[Result "0-1"]
[ECO "D27"]
[WhiteElo "2516"]
[BlackElo "2521"]
[Annotator "TA"]
[PlyCount "68"]
[EventDate "2022.07.01"]
[EventType "tourn"]
[EventCountry "SWE"]
[SourceTitle "playchess.com"]
[Source "ChessBase"]
[SourceQuality "1"]
[TimeControl "40/5400+30:1800+30"]

{[%evp 18,68,28,33,30,10,25,10,0,0,0,0,6,0,0,0,0,-7,7,0,0,0,0,0,0,0,0,0,0,-7,0,0,0,0,0,0,0,-126,-154,-110,-139,-243,-247,-324,-320,-456,-447,-449,-443,-443,-435,-422,-418]} 1. d4 {[%emt 0:00:06]} d5 {[%emt 0:00:11]} 2. c4 {[%emt 0:00:29]} dxc4 {[%emt 0:00:36]} 3. Nf3 {[%emt 0:00:40]} Nf6 {[%emt 0:00:13]} 4. e3 {[%emt 0:00:10]} e6 {[%emt 0:00:15]} 5. Bxc4 {[%emt 0:00:09]} c5 {[%emt 0:00:05]} 6. O-O {[%emt 0:02:43]} a6 {[%emt 0:00:52]} 7. dxc5 {[%emt 0:07:33]} Bxc5 {[%emt 0:00:24]} 8. Qxd8+ {[%emt 0:00:10]} Kxd8 {[%emt 0:00:04]} 9. Nbd2 {[%emt 0:01:17]} Ke7 {[%emt 0:00:36]} 10. Be2 {[%emt 0:00:19] 10.b3 is not played anymore.} Bd7 {[%emt 0:04:35] D27: Queen's Gambit Accepted: Classical main line: 7 e4!? and 7 a4.} 11. Rd1 {[%emt 0:15:37]} Bb5 {[%emt 0:07:42] [#]} 12. Bxb5 $146 {[%emt 0:01:19]} (12. Nc4 {seems wilder.} Nc6 13. b3 Rhd8 14. Bb2) ({Predecessor:} 12. Nc4 Nc6 13. Bd2 Rhd8 14. a3 Rac8 15. Be1 Rxd1 16. Rxd1 Ne4 17. Kf1 Nd6 18. Nce5 {½-½ (60) Kovalenko,I (2643)-Lintchevski,D (2555) Chess.com INT 2021}) 12... axb5 {[%emt 0:00:24] The position is equal.} 13. Nb3 {[%emt 0:00:19]} Bd6 {[%emt 0:30:09]} 14. Nfd4 {[%emt 0:19:19]} Rd8 {[%emt 0:06:43]} 15. Bd2 {[%emt 0:00:28]} b4 {[%emt 0:00:18]} 16. Rdc1 {[%emt 0:09:26]} Kf8 {[%emt 0:04:37]} 17. Rc4 {[%emt 0:14:54]} Nd5 {[%emt 0:00:40]} 18. e4 {[%emt 0:00:51]} Nb6 {[%emt 0:00:18]} 19. Rc2 {[%emt 0:01:12]} Rc8 {[%emt 0:02:11]} 20. Rxc8+ {[%emt 0:07:45]} Nxc8 {[%emt 0:00:03]} 21. Rc1 {[%emt 0:00:28]} Nb6 {[%emt 0:02:02]} 22. Nb5 {[%emt 0:06:45]} Be7 {[%emt 0:00:08]} 23. Rc7 {[%emt 0:03:38]} Rxa2 {[%emt 0:01:33]} 24. Rxb7 {[%emt 0:00:58]} N8d7 {[%emt 0:00:18]} 25. Bc1 {[%emt 0:00:10]} Ke8 {[%emt 0:04:56]} 26. Kf1 {[%emt 0:01:50]} Nc4 {[%emt 0:04:59]} 27. Ra7 {[%emt 0:01:06]} (27. Rc7 $11 Nd6 28. Nxd6+ Bxd6 29. Rc6) 27... Rxa7 $17 {[%emt 0:00:23] Active counter play!} 28. Nxa7 {[%emt 0:00:07]} Nc5 {[%emt 0:04:43]} 29. Nd4 {[%emt 0:01:35]} (29. Nxc5 $17 {keeps fighting.} Bxc5 30. Nc6) 29... Nd3 $19 {[%emt 0:06:30]} ({And not} 29... Nxe4 30. Nac6 $17) 30. Nb3 {[%emt 0:00:14] [#]} Kd7 $1 {[%emt 0:00:33]} ({Weaker is} 30... Ncxb2 31. Bxb2 Nxb2 32. Nc6 $17) ({Inferior is} 30... Ndxb2 31. Nc6 $17) 31. Nb5 {[%emt 0:01:30]} (31. Be3 $142) 31... e5 {[%emt 0:03:02] Black is clearly winning.} 32. Ke2 {[%emt 0:00:08]} Nxc1+ {[%emt 0:00:39]} 33. Nxc1 {[%emt 0:00:07]} Kc6 {[%emt 0:01:31]} 34. Na7+ {[%emt 0:00:14]} Kb7 {[%emt 0:00:04] Weighted Error Value: White=0.27 (precise) /Black=0.02 (flawless)} 0-1

[Event "Swedish Championship 2022"]
[Site "Uppsala"]
[Date "2022.07.06"]
[Round "5.1"]
[White "Smith, Axel"]
[Black "Westerberg, Jonathan"]
[Result "0-1"]
[ECO "B31"]
[WhiteElo "2417"]
[BlackElo "2476"]
[Annotator "TA"]
[PlyCount "130"]
[EventDate "2022.07.01"]
[EventType "tourn"]
[EventCountry "SWE"]
[SourceTitle "playchess.com"]
[Source "ChessBase"]
[SourceQuality "1"]
[TimeControl "40/5400+30:1800+30"]

{[%evp 14,130,-33,-17,-14,3,-1,-6,-18,-32,0,-17,-22,-52,-55,-61,-62,-176,-70,-54,-57,-137,-141,-141,0,0,7,-49,14,-62,-62,-169,-164,-176,-173,-173,-83,-259,-259,-259,-245,-252,-241,-246,-226,-347,-347,-346,-350,-464,-460,-442,-341,-402,-394,-503,-350,-344,-293,-278,0,-380,-280,-353,0,-379,-379,-472,-352,-327,-333,-372,-372,-475,-372,-323,-316,-323,-302,-519,-489,-530,-541,-596,-575,-695,-673,-831,-788,-1127,-833,-872,-858,-1113,-1111,-1089,-1097,-1082,-1056,-11839,-6801,-6079,-6079,-5699,-4878,-29974,-5189,-4778,-4727,-4133,-2409,-29981,-29983,-29983,-29984,-29985,-29982,-29981,-29979]} 1. e4 {[%emt 0:00:03]} c5 {[%emt 0:03:34]} 2. Nf3 {[%emt 0:00:03]} Nc6 {[%emt 0:01:14]} 3. Bb5 {[%emt 0:00:01]} g6 {[%emt 0:00:38]} 4. O-O {[%emt 0:00:07]} Bg7 {[%emt 0:00:06]} 5. c3 {[%emt 0:00:12]} Nf6 {[%emt 0:01:08]} 6. d4 {[%emt 0:00:13][%cal Bd2d4,Bd4d5][%mdl 32]} Nxe4 {[%emt 0:06:48]} 7. d5 {[%emt 0:00:02]} Nb8 {[%emt 0:04:07]} 8. Re1 {[%emt 0:03:32]} Nd6 {[%emt 0:04:00] B31: Sicilian: 2...Nc6 3 Bb5 g6.} 9. Bd3 {[%emt 0:16:23]} O-O {[%emt 0:00:08]} 10. h4 {[%emt 0:08:47]} Ne8 {[%emt 0:03:19] [#] The position is equal.} 11. h5 $146 {[%emt 0:04:32]} ({Predecessor:} 11. Bg5 Nf6 12. d6 exd6 13. Bc4 b5 14. Bd5 Nc6 15. h5 Rb8 16. Nbd2 Ne7 17. Bxf6 Bxf6 {½-½ (91) Georgescu,L (2276)-Heimisson,H (2352) Aarhus 2020}) 11... d6 {[%emt 0:00:03]} 12. hxg6 {[%emt 0:11:26]} hxg6 {[%emt 0:00:10]} 13. Ng5 {[%emt 0:00:27]} Nf6 {[%emt 0:01:41]} 14. c4 {[%emt 0:03:39]} Nbd7 {[%emt 0:01:58]} 15. f4 {[%emt 0:11:46]} (15. Nc3 $15) 15... Nh7 {[%emt 0:20:30]} ({Better is} 15... b5 $1 $19 16. Nc3 bxc4 17. Bxc4 Nb6) 16. Nxh7 $15 {[%emt 0:09:03]} Kxh7 {[%emt 0:00:30]} (16... Bd4+ 17. Be3 Kxh7 18. Bxd4 cxd4 19. Nd2 $11) 17. Nd2 {[%emt 0:13:08]} (17. f5 $1 $15) 17... Bd4+ {[%emt 0:07:32]} 18. Kf1 {[%emt 0:00:01]} f5 {[%emt 0:01:11]} (18... Rh8 $1 $17 {aiming for ...Nf6.} 19. Nf3 Kg8 20. Nxd4 cxd4) 19. Nf3 $11 {[%emt 0:00:51]} Bf6 {[%emt 0:00:02]} 20. Qc2 {[%emt 0:01:59]} (20. Qe2 $11) 20... Kg7 {[%emt 0:02:55]} (20... Rh8 $15) 21. a4 {[%emt 0:04:06]} (21. Ng5 $11 Bxg5 22. fxg5) 21... Re8 $15 {[%emt 0:07:51]} 22. g4 {[%emt 0:07:18]} (22. Qd2 $15) 22... fxg4 $19 {[%emt 0:00:36]} 23. Nh2 {[%emt 0:01:38]} Rh8 {[%emt 0:13:55]} 24. Nxg4 {[%emt 0:00:46]} Bh4 {[%emt 0:05:25]} (24... Rh1+ $19 {is more deadly.} 25. Ke2 Qh8 26. Rxh1 (26. Bxg6 $2 Ne5 $19) 26... Qxh1) 25. Bd2 $2 {[%emt 0:02:16]} ({Wrong is} 25. Re6 $2 Nf6 26. Qg2 Bxe6 27. dxe6 Nxg4 28. Qxg4 Qe8 $19) (25. Re3 $17) 25... Bxe1 {[%emt 0:02:15] The board is on fire.} (25... Nf6 $2 26. Nxf6 Bh3+ 27. Ke2 Bxe1 28. Rxe1 exf6 29. Rg1 $17) 26. Rxe1 {[%emt 0:00:02] [#]} Rh1+ $1 {[%emt 0:00:25]} 27. Kg2 {[%emt 0:00:02] [#]} Rxe1 {[%emt 0:00:17]} 28. Bxe1 {[%emt 0:00:01]} Nf6 {[%emt 0:01:05]} 29. Nf2 {[%emt 0:01:54]} (29. Nxf6 {was the only chance.} exf6 30. Bxg6) 29... Qe8 {[%emt 0:04:45]} 30. Bc3 {[%emt 0:00:03]} Bf5 {[%emt 0:00:09]} 31. Ne4 {[%emt 0:01:03]} Bxe4+ {[%emt 0:02:24]} ({Avoid the trap} 31... Qh8 $2 32. Ng5 Bxd3 33. Qxd3 $19) 32. Bxe4 {[%emt 0:00:01]} Qf7 {[%emt 0:00:17]} 33. Bf3 {[%emt 0:00:55]} Rh8 {[%emt 0:00:22]} 34. a5 {[%emt 0:00:31]} Qe8 {[%emt 0:01:22]} 35. Qe2 {[%emt 0:00:34]} Qd7 {[%emt 0:00:49]} 36. Bg4 {[%emt 0:00:08]} Qe8 {[%emt 0:00:50]} (36... Qd8 $19 {...Rh4 is the strong threat.} 37. Qe3 Rh4) 37. Qe6 $2 {[%emt 0:00:51][%mdl 8192]} (37. Bf3 $1 $11) 37... Rf8 {[%emt 0:01:54]} 38. Qe2 {[%emt 0:00:27]} Rh8 $2 {[%emt 0:01:25]} (38... Kh7 $19 {Hoping for ...Qf7.} 39. Kf1 Nxg4 40. Qxg4 Rf5) 39. Qe6 $2 {[%emt 0:00:17][%mdl 8192]} (39. Bf3 $11 {and White is okay.}) 39... Qf7 {[%emt 0:00:15]} 40. Qe2 {[%emt 0:00:42]} b6 {[%emt 0:01:49]} 41. Be6 {[%emt 0:07:56]} Qe8 {[%emt 0:01:42]} 42. a6 {[%emt 0:07:19]} Kf8 {[%emt 0:05:27]} 43. Qd3 {[%emt 0:10:05]} Rh7 {[%emt 0:01:56]} 44. b3 {[%emt 0:00:50]} Kg7 {[%emt 0:04:04]} 45. Qe3 {[%emt 0:03:02]} b5 {[%emt 0:07:20]} 46. Bh3 $2 {[%emt 0:02:31]} (46. cxb5 Qxb5 47. Bxf6+ exf6 48. Bg4) 46... bxc4 {[%emt 0:02:32]} 47. bxc4 {[%emt 0:00:01]} ({Not} 47. Bxf6+ Kxf6 48. b4 Kg7 49. bxc5 dxc5 $19) 47... Kf8 {[%emt 0:01:41]} 48. Qe6 {[%emt 0:01:12]} Rf7 {[%emt 0:01:05]} 49. Bd2 {[%emt 0:01:38]} Qa4 {[%emt 0:01:36][%csl LRa6,LRc4] And now ...Qc2 would win.} 50. f5 {[%emt 0:00:15]} g5 {[%emt 0:00:59]} 51. Qe2 {[%emt 0:00:49]} Qxa6 {[%emt 0:01:09]} 52. Kf2 {[%emt 0:00:29]} Qa2 {[%emt 0:00:59]} 53. Bg2 {[%emt 0:00:24]} Qc2 {[%emt 0:00:46]} 54. Kg1 {[%emt 0:00:19]} Qxf5 {[%emt 0:00:27]} 55. Be1 {[%emt 0:00:25]} Qf4 {[%emt 0:02:38] White must now prevent ...Ng4.} 56. Bf3 {[%emt 0:00:36] Inhibits Ng4.} g4 {[%emt 0:01:01]} 57. Bg2 {[%emt 0:00:01]} g3 {[%emt 0:01:02]} 58. Qd3 {[%emt 0:00:03]} Ng4 {[%emt 0:00:45] ( -> ...Nf2)} 59. Qxg3 {[%emt 0:01:20]} Qxg3 {[%emt 0:00:07]} (59... Qd4+ $142 60. Kh1 Rh7+ 61. Bh3 Ne5 62. Bc3 Qe4+ 63. Kg1 Rg7 64. Bxe5 Qxe5 65. Qxg7+ Kxg7 66. Bg4 Qg3+ 67. Kf1 Qxg4 68. Kf2 Qe4 69. Kg1 Qe2 70. Kh1 Kf6 71. Kg1 Kg5 72. Kh1 Kf4 73. Kg1 Kg3 74. Kh1 Qh2#) 60. Bxg3 {[%emt 0:00:03][%mdl 4096] Endgame KRN-KB} Ne3 {[%emt 0:00:07]} 61. Bh3 {[%emt 0:00:48]} Rf3 {[%emt 0:00:23]} 62. Kh2 {[%emt 0:00:27]} Nf1+ {[%emt 0:00:25] Black mates.} 63. Bxf1 {[%emt 0:00:05]} Rxf1 {[%emt 0:00:03]} 64. Kh3 {[%emt 0:01:01]} Rc1 {[%emt 0:00:11]} 65. Bf4 {[%emt 0:00:04]} Rxc4 {[%emt 0:00:06] Weighted Error Value: White=0.75/Black=0.42} 0-1